fUSD/lending_fUSD_20260524
["ID","MTS","AMOUNT","RATE_DAILY","PERIOD"]
[422897190,1779589840000,-1263.09079404,0.000206,2]
[422897173,1779589840000,-2036.16062035,0.000202,2]
[422897193,1779589840000,-255.29299349,0.00020746,2]
[422897224,1779589840000,-58371.17374444,0.000215,2]
[422897228,1779589840000,-2036.16062035,0.000217,2]
[422897229,1779589840000,-1260.66,0.000217,2]
[422897226,1779589840000,-3694.25565805,0.00021542,2]
[422897222,1779589840000,-506.69695703,0.00021416,7]
[422897227,1779589840000,-1151.22,0.00021676,2]
[422897231,1779589840000,-200.0,0.00021842,2]
[422897230,1779589840000,-1625.83,0.00021705,2]
[422897236,1779589840000,-165.40532262,0.00021911,7]
[422897238,1779589840000,-5000.0,0.00021918,2]
[422897239,1779589840000,-1005.66,0.00021918,2]
[422897232,1779589840000,-2080.17592889,0.00021842,2]
[422897240,1779589840000,-151.0,0.00022,2]
[422897241,1779589840000,-535.0,0.00022,2]
[422897233,1779589840000,-2036.16062035,0.000219,2]
[422897234,1779589840000,-960.0,0.000219,2]
[422897235,1779589840000,-500.0,0.000219,2]
[422897242,1779589840000,-293.0,0.00022,2]
[422897247,1779589840000,-162.0,0.00022,2]
[422897245,1779589840000,-161.0,0.00022,2]
[422897246,1779589840000,-166001.7230637,0.00022,4]
[422897244,1779589840000,-181.0,0.00022,2]
[422897249,1779589840000,-160.0,0.00022,2]
[422897243,1779589840000,-287.0,0.00022,2]
[422897191,1779589840000,-2036.16062035,0.000206,2]
[422897223,1779589840000,-2036.16062035,0.000215,2]
[422897225,1779589840000,-225.28713837,0.000215,2]
[422897237,1779589840000,-3078.71,0.00021918,2]
[422897221,1779589840000,-10552.45525739,0.00021361,2]
[422897195,1779589840000,-1934.38338736,0.00020746,2]
[422897220,1779589840000,-2005.9555727,0.00021294,2]
[422897194,1779589840000,-200.0,0.00020746,2]
[422897199,1779589840000,-2036.16062035,0.000208,2]
[422897197,1779589840000,-1564.1917735,0.000208,2]
[422897203,1779589840000,-1564.1917735,0.00021,2]
[422897201,1779589840000,-151.0,0.00021,2]
[422897204,1779589840000,-1263.09079404,0.00021,2]
[422897196,1779589840000,-170.13,0.00020764,2]
[422897248,1779589840000,-814.07097232,0.00022,7]
[422897198,1779589840000,-1263.09079404,0.000208,2]
[422897202,1779589840000,-535.0,0.00021,2]
[422897206,1779589840000,-2036.16062035,0.00021,2]
[422897200,1779589840000,-2500.0,0.000209,7]
[422897207,1779589840000,-293.0,0.00021,2]
[422897217,1779589840000,-2036.16062035,0.000212,2]
[422897212,1779589840000,-199.66013812,0.00021,2]
[422897216,1779589840000,-169.36,0.00021092,2]
[422897210,1779589840000,-154.0,0.00021,2]
[422897211,1779589840000,-1209.73914843,0.00021,2]
[422897209,1779589840000,-181.0,0.00021,2]
[422897218,1779589840000,-200.0,0.00021294,2]
[422897213,1779589840000,-3414.42120023,0.00021,7]
[422897205,1779589840000,-160.70563724,0.00021,2]
[422897208,1779589840000,-287.0,0.00021,2]
[422897215,1779589840000,-198.159317,0.0002107,2]
[422897214,1779589840000,-170.78483,0.0002107,2]
[422897285,1779589841000,-449.371446,0.000225,2]
[422897288,1779589841000,-215.34753388,0.000227,3]
[422897286,1779589841000,-3659.52342296,0.000226,2]
[422897284,1779589841000,-449.371446,0.000225,2]
[422897283,1779589841000,-449.371446,0.000225,2]
[422897287,1779589841000,-500.0,0.00022686,2]
[422897289,1779589841000,-531.19533287,0.0002271,2]
[422897280,1779589841000,-36032.34262071,0.000225,2]
[422897290,1779589841000,-563.87108169,0.00022799,2]
[422897292,1779589841000,-2236.95670847,0.00022938,2]
[422897282,1779589841000,-449.371446,0.000225,2]
[422897291,1779589841000,-2000.0,0.00022857,7]
[422897304,1779589841000,-209878.0,0.00023,2]
[422897295,1779589841000,-218.0,0.00022955,2]
[422897298,1779589841000,-535.0,0.00023,2]
[422897293,1779589841000,-280.0,0.00022955,2]
[422897297,1779589841000,-151.0,0.00023,2]
[422897296,1779589841000,-1832.9781872,0.00022969,2]
[422897294,1779589841000,-150.0,0.00022955,2]
[422897300,1779589841000,-287.0,0.00023,2]
[422897301,1779589841000,-223.45821921,0.00023,2]
[422897303,1779589841000,-301.29220221,0.00023,2]
[422897305,1779589841000,-3694.25565805,0.00023015,2]
[422897307,1779589841000,-5530.0,0.000234,3]
[422897281,1779589841000,-164.403719,0.000225,2]
[422897302,1779589841000,-181.0,0.00023,2]
[422897273,1779589841000,-215.34753388,0.0002223,7]
[422897253,1779589841000,-500.0,0.0002204,2]
[422897272,1779589841000,-5660.44,0.00022222,7]
[422897250,1779589841000,-300.0,0.00022,2]
[422897306,1779589841000,-500.0,0.00023366,2]
[422897251,1779589841000,-206.70320979,0.00022,3]
[422897254,1779589841000,-2036.16062035,0.000221,2]
[422897252,1779589841000,-500.0,0.00022025,2]
[422897256,1779589841000,-243.81411031,0.0002211,2]
[422897265,1779589841000,-226.530182,0.00022166,2]
[422897266,1779589841000,-186.956308,0.00022166,2]
[422897267,1779589841000,-3179.1360749,0.00022166,2]
[422897255,1779589841000,-527.44351568,0.000221,7]
[422897259,1779589841000,-151.0,0.00022166,2]
[422897261,1779589841000,-151.0,0.00022166,2]
[422897257,1779589841000,-1095.9152904,0.00022166,2]
[422897260,1779589841000,-151.0,0.00022166,2]
[422897258,1779589841000,-18355.9810281,0.00022166,2]
[422897264,1779589841000,-151.0,0.00022166,2]
[422897263,1779589841000,-151.0,0.00022166,2]
[422897262,1779589841000,-151.0,0.00022166,2]
[422897270,1779589841000,-151.0,0.00022222,2]
[422897268,1779589841000,-3691.35770055,0.00022167,2]
[422897269,1779589841000,-151.0,0.00022222,2]
[422897274,1779589841000,-746.8,0.00022353,2]
[422897275,1779589841000,-2157.14243826,0.0002239,2]
[422897279,1779589841000,-2900.0,0.000225,15]
[422897278,1779589841000,-1120.53,0.00022466,2]
[422897276,1779589841000,-10552.45525739,0.00022438,2]
[422897271,1779589841000,-162.469386,0.00022222,2]
[422897277,1779589841000,-846.02,0.00022466,2]
[422897312,1779589841000,-578.20924308,0.00023475,2]
[422897299,1779589841000,-293.0,0.00023,2]
[422897311,1779589841000,-151.0,0.00023475,2]
[422897347,1779589841000,-449.371446,0.00024487,2]
[422897350,1779589841000,-786.07309635,0.000245,2]
[422897348,1779589841000,-565780.3041,0.00024487,2]
[422897345,1779589841000,-449.371446,0.00024487,2]
[422897349,1779589841000,-3694.25565805,0.00024488,2]
[422897341,1779589841000,-151.0,0.00024487,2]
[422897342,1779589841000,-151.0,0.00024487,2]
[422897344,1779589841000,-449.371446,0.00024487,2]
[422897351,1779589841000,-445.95,0.000245,2]
[422897353,1779589841000,-154.9833366,0.00024509,2]
[422897354,1779589841000,-480.04211281,0.00024571,2]
[422897352,1779589841000,-378.19470933,0.00024508,2]
[422897355,1779589841000,-24781.2009116,0.0002458,7]
[422897356,1779589841000,-154.19218727,0.00024585,7]
[422897357,1779589841000,-500.0,0.00024588,2]
[422897358,1779589841000,-500.0,0.00024588,2]
[422897359,1779589841000,-500.0,0.00024588,2]
[422897360,1779589841000,-528.83033071,0.00024588,3]
[422897361,1779589841000,-3691.35770055,0.00024589,2]
[422897362,1779589841000,-10552.45525739,0.00024592,2]
[422897364,1779589841000,-1487.0,0.00024658,5]
[422897365,1779589841000,-189.02,0.00024658,2]
[422897367,1779589841000,-151.23,0.00024658,2]
[422897368,1779589841000,-151.22,0.00024658,2]
[422897366,1779589841000,-1000.0,0.00024658,2]
[422897363,1779589841000,-265.57,0.00024658,8]
[422897308,1779589841000,-286.40081671,0.00023475,2]
[422897346,1779589841000,-449.371446,0.00024487,2]
[422897340,1779589841000,-151.0,0.00024487,2]
[422897343,1779589841000,-151.0,0.00024487,2]
[422897331,1779589841000,-418.0,0.00024297,10]
[422897310,1779589841000,-1235.18214925,0.00023475,2]
[422897314,1779589841000,-1692.95017915,0.00023486,2]
[422897309,1779589841000,-203.16638177,0.00023475,2]
[422897313,1779589841000,-623.58710447,0.00023475,2]
[422897315,1779589841000,-1260.66,0.000235,7]
[422897317,1779589841000,-151.0,0.0002353,2]
[422897334,1779589841000,-159.0,0.00024475,5]
[422897319,1779589841000,-1000.0,0.000238,5]
[422897326,1779589841000,-1280.88388877,0.00024023,2]
[422897322,1779589841000,-535.0,0.00024,2]
[422897323,1779589841000,-293.0,0.00024,2]
[422897324,1779589841000,-287.0,0.00024,2]
[422897316,1779589841000,-10552.45525739,0.00023515,2]
[422897321,1779589841000,-151.0,0.00024,2]
[422897318,1779589841000,-158.14480742,0.00023585,2]
[422897325,1779589841000,-181.0,0.00024,2]
[422897338,1779589841000,-181.865414,0.00024487,2]
[422897320,1779589841000,-5530.0,0.000238,5]
[422897337,1779589841000,-257.801114,0.00024487,2]
[422897332,1779589841000,-746.8,0.00024324,2]
[422897333,1779589841000,-173.25,0.00024472,2]
[422897328,1779589841000,-1151.22,0.00024084,2]
[422897335,1779589841000,-151.835296,0.00024487,2]
[422897336,1779589841000,-151.0,0.00024487,2]
[422897339,1779589841000,-151.0,0.00024487,2]
[422897329,1779589841000,-1367.027,0.00024169,6]
[422897330,1779589841000,-163.33535,0.00024169,6]
[422897327,1779589841000,-509.57694666,0.00024067,2]
[422897377,1779589842000,-296.10232,0.0002475,2]
[422897382,1779589842000,-202.7,0.000249,2]
[422897378,1779589842000,-296.10233,0.0002475,2]
[422897381,1779589842000,-152.0,0.00024894,7]
[422897379,1779589842000,-301.86521886,0.000248,2]
[422897384,1779589842000,-1260.66,0.000249,7]
[422897380,1779589842000,-500.0,0.00024845,2]
[422897376,1779589842000,-296.10232,0.0002475,2]
[422897369,1779589842000,-1840.316655,0.00024692,2]
[422897372,1779589842000,-200.0,0.00024701,2]
[422897371,1779589842000,-3830.1583657,0.00024692,2]
[422897370,1779589842000,-5329.17936,0.00024692,2]
[422897375,1779589842000,-296.10233,0.0002475,2]
[422897374,1779589842000,-296.10232,0.0002475,2]
[422897387,1779589842000,-813.0,0.00024957,10]
[422897373,1779589842000,-296.10232,0.0002475,2]
[422897385,1779589842000,-500.0,0.000249,9]
[422897392,1779589842000,-500.0,0.00024999,2]
[422897388,1779589842000,-178.47579368,0.0002499,2]
[422897383,1779589842000,-557.91625936,0.000249,2]
[422897405,1779589842000,-768.0,0.00024297,10]
[422897404,1779589842000,-153.344854,0.0001958,2]
[422897406,1779589842000,-418.36943632,0.00024957,10]
[422897398,1779589842000,-166109.14863566,0.00025,2]
[422897400,1779589842000,-7065.62967323,0.00025,2]
[422897391,1779589842000,-500.0,0.00024999,2]
[422897399,1779589842000,-4716.83026371,0.00025,2]
[422897394,1779589842000,-500.0,0.00024999,2]
[422897395,1779589842000,-213574.05688016,0.00025,2]
[422897397,1779589842000,-2774.49316287,0.00025,2]
[422897389,1779589842000,-500.0,0.00024999,2]
[422897396,1779589842000,-44700.0,0.00025,2]
[422897390,1779589842000,-500.0,0.00024999,2]
[422897393,1779589842000,-500.0,0.00024999,2]
[422897386,1779589842000,-1487.0,0.00024932,5]
[422897441,1779589843000,-449.371438,0.00025,2]
[422897440,1779589843000,-449.371446,0.00025,2]
[422897439,1779589843000,-449.371446,0.00025,2]
[422897436,1779589843000,-151.0,0.00025,2]
[422897447,1779589843000,-308.0,0.000253,2]
[422897443,1779589843000,-652.0,0.00025082,2]
[422897449,1779589843000,-1000.0,0.000256,2]
[422897438,1779589843000,-449.371446,0.00025,2]
[422897459,1779589843000,-159.0,0.00025972,5]
[422897453,1779589843000,-1487.0,0.00025753,5]
[422897448,1779589843000,-1487.0,0.00025479,5]
[422897452,1779589843000,-2000.0,0.00025714,7]
[422897451,1779589843000,-652.0,0.00025637,2]
[422897455,1779589843000,-1273.441,0.00025956,2]
[422897456,1779589843000,-1225.951,0.00025956,2]
[422897457,1779589843000,-6060.0,0.00025956,2]
[422897445,1779589843000,-151.22,0.0002514,7]
[422897454,1779589843000,-202.7,0.000259,2]
[422897458,1779589843000,-1358.157,0.00025956,2]
[422897450,1779589843000,-151.23,0.00025622,30]
[422897444,1779589843000,-151.23,0.0002514,7]
[422897433,1779589843000,-151.0,0.00025,2]
[422897442,1779589843000,-273.7,0.00025014,5]
[422897417,1779589843000,-7.21926914,0.00025,2]
[422897418,1779589843000,-3455.85415716,0.00025,2]
[422897416,1779589843000,-765.0,0.00024957,10]
[422897421,1779589843000,-150.0,0.00025,2]
[422897460,1779589843000,-204.82787661,0.00025975,2]
[422897423,1779589843000,-168.58665625,0.00025,2]
[422897419,1779589843000,-950851.34901931,0.00025,2]
[422897420,1779589843000,-3603.9936798,0.00025,2]
[422897425,1779589843000,-298.43046835,0.00025,2]
[422897446,1779589843000,-1487.0,0.00025205,5]
[422897435,1779589843000,-151.0,0.00025,2]
[422897429,1779589843000,-182.29,0.00025,2]
[422897426,1779589843000,-292.62829546,0.00025,2]
[422897424,1779589843000,-540.00002255,0.00025,2]
[422897428,1779589843000,-182.29,0.00025,2]
[422897432,1779589843000,-151.0,0.00025,2]
[422897434,1779589843000,-151.0,0.00025,2]
[422897431,1779589843000,-215.34753388,0.00025,7]
[422897430,1779589843000,-182.29,0.00025,2]
[422897437,1779589843000,-151.0,0.00025,2]
[422897427,1779589843000,-184.51353097,0.00025,2]
[422897461,1779589843000,-1487.0,0.00026027,5]
[422897422,1779589843000,-1017.0,0.00025,2]
[422897470,1779589843000,-350.0,0.00026441,2]
[422897498,1779589843000,-202.7,0.000269,2]
[422897492,1779589843000,-1151.22,0.00026492,2]
[422897493,1779589843000,-1075.08,0.00026575,5]
[422897496,1779589843000,-652.0,0.00026746,3]
[422897495,1779589843000,-960.0,0.000267,7]
[422897500,1779589843000,-433.366884,0.00027,2]
[422897502,1779589843000,-155.86,0.00027,2]
[422897503,1779589843000,-3691.35770055,0.00027011,2]
[422897505,1779589843000,-239.96111055,0.00027289,21]
[422897490,1779589843000,-505.0,0.00026467,2]
[422897507,1779589843000,-652.0,0.00027301,4]
[422897506,1779589843000,-1136.09471333,0.00027296,10]
[422897509,1779589843000,-174.0,0.0002737,2]
[422897510,1779589843000,-152.66204304,0.0002739,2]
[422897514,1779589843000,-265.57,0.00027397,31]
[422897512,1779589843000,-247.90559366,0.00027397,7]
[422897515,1779589843000,-10282.19558764,0.00027397,2]
[422897513,1779589843000,-1500.0,0.00027397,2]
[422897511,1779589843000,-500.0,0.00027396,2]
[422897468,1779589843000,-746.8,0.00026296,2]
[422897504,1779589843000,-557.91625933,0.000272,2]
[422897489,1779589843000,-1000.0,0.00026467,2]
[422897508,1779589843000,-160.0,0.0002737,2]
[422897487,1779589843000,-1000.0,0.00026467,2]
[422897486,1779589843000,-1000.0,0.00026467,2]
[422897462,1779589843000,-352.85699474,0.00026057,5]
[422897471,1779589843000,-350.0,0.00026441,2]
[422897469,1779589843000,-1487.0,0.00026301,5]
[422897463,1779589843000,-151.23,0.00026105,2]
[422897465,1779589843000,-599.60298507,0.00026214,2]
[422897467,1779589843000,-150.0,0.00026235,2]
[422897466,1779589843000,-646.65982734,0.00026214,2]
[422897483,1779589843000,-1000.0,0.00026467,2]
[422897484,1779589843000,-1000.0,0.00026467,2]
[422897473,1779589843000,-350.0,0.00026441,2]
[422897464,1779589843000,-652.0,0.00026192,3]
[422897472,1779589843000,-350.0,0.00026441,2]
[422897478,1779589843000,-397.0,0.00026441,2]
[422897481,1779589843000,-1000.0,0.00026467,2]
[422897480,1779589843000,-1000.0,0.00026467,2]
[422897477,1779589843000,-350.0,0.00026441,2]
[422897476,1779589843000,-350.0,0.00026441,2]
[422897485,1779589843000,-1000.0,0.00026467,2]
[422897474,1779589843000,-350.0,0.00026441,2]
[422897475,1779589843000,-350.0,0.00026441,2]
[422897482,1779589843000,-1000.0,0.00026467,2]
[422897555,1779589844000,-151.0,0.00027397,2]
[422897547,1779589844000,-151.0,0.00027397,2]
[422897548,1779589844000,-151.0,0.00027397,2]
[422897551,1779589844000,-151.0,0.00027397,2]
[422897549,1779589844000,-151.0,0.00027397,2]
[422897557,1779589844000,-151.0,0.00027397,2]
[422897558,1779589844000,-282.0,0.00027397,2]
[422897553,1779589844000,-151.0,0.00027397,2]
[422897552,1779589844000,-212.855278,0.00027397,2]
[422897556,1779589844000,-151.0,0.00027397,2]
[422897554,1779589844000,-151.0,0.00027397,2]
[422897568,1779589844000,-201.617581,0.00027397,2]
[422897570,1779589844000,-1050.165476,0.00027397,2]
[422897571,1779589844000,-201.617581,0.00027397,2]
[422897564,1779589844000,-201.617581,0.00027397,2]
[422897559,1779589844000,-201.617581,0.00027397,2]
[422897562,1779589844000,-201.617581,0.00027397,2]
[422897563,1779589844000,-201.617581,0.00027397,2]
[422897565,1779589844000,-201.617581,0.00027397,2]
[422897561,1779589844000,-201.617581,0.00027397,2]
[422897566,1779589844000,-201.617581,0.00027397,2]
[422897550,1779589844000,-151.0,0.00027397,2]
[422897560,1779589844000,-201.617581,0.00027397,2]
[422897546,1779589844000,-151.0,0.00027397,2]
[422897521,1779589844000,-125730.90573943,0.00027397,2]
[422897537,1779589844000,-366.945387,0.00027397,2]
[422897532,1779589844000,-151.0,0.00027397,2]
[422897569,1779589844000,-201.617581,0.00027397,2]
[422897522,1779589844000,-151.00042,0.00027397,2]
[422897523,1779589844000,-151.0,0.00027397,2]
[422897525,1779589844000,-156.051919,0.00027397,2]
[422897527,1779589844000,-449.982111,0.00027397,2]
[422897528,1779589844000,-449.982111,0.00027397,2]
[422897531,1779589844000,-151.0,0.00027397,2]
[422897524,1779589844000,-300.838289,0.00027397,2]
[422897529,1779589844000,-449.982111,0.00027397,2]
[422897526,1779589844000,-449.982111,0.00027397,2]
[422897530,1779589844000,-151.0,0.00027397,2]
[422897533,1779589844000,-151.0,0.00027397,2]
[422897539,1779589844000,-366.945387,0.00027397,2]
[422897541,1779589844000,-366.945387,0.00027397,2]
[422897540,1779589844000,-366.945387,0.00027397,2]
[422897543,1779589844000,-151.0,0.00027397,2]
[422897544,1779589844000,-151.0,0.00027397,2]
[422897542,1779589844000,-366.945387,0.00027397,2]
[422897545,1779589844000,-180.550113,0.00027397,2]
[422897534,1779589844000,-300.0,0.00027397,2]
[422897536,1779589844000,-366.945387,0.00027397,2]
[422897535,1779589844000,-366.945387,0.00027397,2]
[422897538,1779589844000,-366.945387,0.00027397,2]
[422897574,1779589844000,-201.617581,0.00027397,2]
[422897567,1779589844000,-201.617581,0.00027397,2]
[422897575,1779589844000,-1050.165476,0.00027397,2]
[422897606,1779589844000,-153.392402,0.00027397,2]
[422897610,1779589844000,-153.392402,0.00027397,2]
[422897603,1779589844000,-153.392402,0.00027397,2]
[422897604,1779589844000,-153.392402,0.00027397,2]
[422897602,1779589844000,-153.392402,0.00027397,2]
[422897605,1779589844000,-153.392402,0.00027397,2]
[422897607,1779589844000,-153.392402,0.00027397,2]
[422897609,1779589844000,-153.392402,0.00027397,2]
[422897608,1779589844000,-153.392402,0.00027397,2]
[422897611,1779589844000,-153.392402,0.00027397,2]
[422897617,1779589844000,-153.392402,0.00027397,2]
[422897618,1779589844000,-151.0,0.00027397,2]
[422897620,1779589844000,-153.392402,0.00027397,2]
[422897621,1779589844000,-151.0,0.00027397,2]
[422897623,1779589844000,-153.392402,0.00027397,2]
[422897622,1779589844000,-151.0,0.00027397,2]
[422897612,1779589844000,-153.392402,0.00027397,2]
[422897619,1779589844000,-151.0,0.00027397,2]
[422897613,1779589844000,-151.0,0.00027397,2]
[422897615,1779589844000,-151.0,0.00027397,2]
[422897614,1779589844000,-153.392402,0.00027397,2]
[422897624,1779589844000,-166.824025,0.00027397,2]
[422897573,1779589844000,-1050.165476,0.00027397,2]
[422897601,1779589844000,-153.392402,0.00027397,2]
[422897600,1779589844000,-153.392402,0.00027397,2]
[422897616,1779589844000,-151.0,0.00027397,2]
[422897594,1779589844000,-1050.165476,0.00027397,2]
[422897572,1779589844000,-1050.165476,0.00027397,2]
[422897599,1779589844000,-1050.16547,0.00027397,2]
[422897577,1779589844000,-1050.165476,0.00027397,2]
[422897576,1779589844000,-201.617581,0.00027397,2]
[422897580,1779589844000,-201.617581,0.00027397,2]
[422897581,1779589844000,-1050.165476,0.00027397,2]
[422897578,1779589844000,-201.617581,0.00027397,2]
[422897583,1779589844000,-1050.165476,0.00027397,2]
[422897584,1779589844000,-151.0,0.00027397,2]
[422897579,1779589844000,-1050.165476,0.00027397,2]
[422897582,1779589844000,-1050.165476,0.00027397,2]
[422897585,1779589844000,-1050.165476,0.00027397,2]
[422897586,1779589844000,-151.0,0.00027397,2]
[422897595,1779589844000,-1050.165476,0.00027397,2]
[422897598,1779589844000,-1050.165476,0.00027397,2]
[422897596,1779589844000,-1050.165476,0.00027397,2]
[422897588,1779589844000,-151.0,0.00027397,2]
[422897597,1779589844000,-1050.165476,0.00027397,2]
[422897593,1779589844000,-1050.165476,0.00027397,2]
[422897589,1779589844000,-1050.165476,0.00027397,2]
[422897591,1779589844000,-1050.165476,0.00027397,2]
[422897590,1779589844000,-151.0,0.00027397,2]
[422897587,1779589844000,-1050.165476,0.00027397,2]
[422897592,1779589844000,-237.063398,0.00027397,2]
[422897660,1779589845000,-151.0,0.00027397,2]
[422897665,1779589845000,-151.0,0.00027397,2]
[422897657,1779589845000,-166.824025,0.00027397,2]
[422897676,1779589845000,-403.917197,0.00027397,2]
[422897667,1779589845000,-249.259607,0.00027397,2]
[422897663,1779589845000,-151.0,0.00027397,2]
[422897659,1779589845000,-151.0,0.00027397,2]
[422897658,1779589845000,-166.824025,0.00027397,2]
[422897655,1779589845000,-166.824025,0.00027397,2]
[422897661,1779589845000,-151.0,0.00027397,2]
[422897666,1779589845000,-151.0,0.00027397,2]
[422897664,1779589845000,-151.0,0.00027397,2]
[422897668,1779589845000,-403.917197,0.00027397,2]
[422897685,1779589845000,-403.917197,0.00027397,2]
[422897677,1779589845000,-403.917197,0.00027397,2]
[422897672,1779589845000,-403.917197,0.00027397,2]
[422897673,1779589845000,-403.917197,0.00027397,2]
[422897669,1779589845000,-403.917197,0.00027397,2]
[422897671,1779589845000,-403.917197,0.00027397,2]
[422897675,1779589845000,-403.917197,0.00027397,2]
[422897674,1779589845000,-403.917197,0.00027397,2]
[422897678,1779589845000,-403.917197,0.00027397,2]
[422897680,1779589845000,-403.917197,0.00027397,2]
[422897682,1779589845000,-403.917197,0.00027397,2]
[422897681,1779589845000,-403.917197,0.00027397,2]
[422897686,1779589845000,-403.917197,0.00027397,2]
[422897662,1779589845000,-151.0,0.00027397,2]
[422897670,1779589845000,-403.917197,0.00027397,2]
[422897654,1779589845000,-166.824025,0.00027397,2]
[422897627,1779589845000,-153.392402,0.00027397,2]
[422897653,1779589845000,-166.824025,0.00027397,2]
[422897684,1779589845000,-403.917197,0.00027397,2]
[422897625,1779589845000,-151.0,0.00027397,2]
[422897626,1779589845000,-151.0,0.00027397,2]
[422897637,1779589845000,-166.824025,0.00027397,2]
[422897636,1779589845000,-151.0,0.00027397,2]
[422897631,1779589845000,-153.392402,0.00027397,2]
[422897635,1779589845000,-166.824025,0.00027397,2]
[422897629,1779589845000,-151.0,0.00027397,2]
[422897628,1779589845000,-166.824025,0.00027397,2]
[422897633,1779589845000,-151.0,0.00027397,2]
[422897632,1779589845000,-257.698507,0.00027397,2]
[422897630,1779589845000,-151.0,0.00027397,2]
[422897634,1779589845000,-153.392411,0.00027397,2]
[422897656,1779589845000,-166.824025,0.00027397,2]
[422897638,1779589845000,-151.0,0.00027397,2]
[422897644,1779589845000,-151.0,0.00027397,2]
[422897641,1779589845000,-166.824025,0.00027397,2]
[422897645,1779589845000,-166.824025,0.00027397,2]
[422897650,1779589845000,-166.824025,0.00027397,2]
[422897647,1779589845000,-166.824025,0.00027397,2]
[422897642,1779589845000,-151.0,0.00027397,2]
[422897639,1779589845000,-166.824025,0.00027397,2]
[422897640,1779589845000,-151.0,0.00027397,2]
[422897646,1779589845000,-299.220968,0.00027397,2]
[422897643,1779589845000,-166.824025,0.00027397,2]
[422897649,1779589845000,-166.824025,0.00027397,2]
[422897652,1779589845000,-166.824025,0.00027397,2]
[422897651,1779589845000,-166.824025,0.00027397,2]
[422897648,1779589845000,-166.824025,0.00027397,2]
[422897683,1779589845000,-403.917197,0.00027397,2]
[422897733,1779589845000,-6546.173888,0.00027397,2]
[422897679,1779589845000,-403.917197,0.00027397,2]
[422897722,1779589845000,-805.974448,0.00027397,2]
[422897717,1779589845000,-1411.964844,0.00027397,2]
[422897721,1779589845000,-6546.173888,0.00027397,2]
[422897723,1779589845000,-6546.173888,0.00027397,2]
[422897728,1779589845000,-805.974448,0.00027397,2]
[422897729,1779589845000,-6546.173888,0.00027397,2]
[422897724,1779589845000,-805.974448,0.00027397,2]
[422897732,1779589845000,-805.974448,0.00027397,2]
[422897734,1779589845000,-151.0,0.00027397,2]
[422897730,1779589845000,-6546.173888,0.00027397,2]
[422897736,1779589845000,-6546.173888,0.00027397,2]
[422897731,1779589845000,-805.974448,0.00027397,2]
[422897725,1779589845000,-6546.173888,0.00027397,2]
[422897719,1779589845000,-6546.173888,0.00027397,2]
[422897726,1779589845000,-805.974448,0.00027397,2]
[422897748,1779589845000,-6546.173888,0.00027397,2]
[422897738,1779589845000,-805.974448,0.00027397,2]
[422897737,1779589845000,-151.0,0.00027397,2]
[422897739,1779589845000,-6546.173888,0.00027397,2]
[422897742,1779589845000,-6546.173888,0.00027397,2]
[422897741,1779589845000,-805.974448,0.00027397,2]
[422897747,1779589845000,-805.974448,0.00027397,2]
[422897745,1779589845000,-805.974448,0.00027397,2]
[422897746,1779589845000,-6546.173888,0.00027397,2]
[422897744,1779589845000,-6546.173888,0.00027397,2]
[422897740,1779589845000,-186.598409,0.00027397,2]
[422897688,1779589845000,-1411.964851,0.00027397,2]